bitfinex-derivatives/quotes_BTCF0:USTF0_20260221
["timestamp","ask_amount","ask_price","bid_price","bid_amount"]
[1771708767054,0.014624,68397.0,68388.0,0.014626]
[1771708768446,0.20542483,68396.0,68388.0,0.014626]
[1771708768655,0.014624,68397.0,68388.0,0.014626]
[1771708768857,0.2200498,68396.0,68388.0,0.014626]
[1771708769148,0.014625,68396.0,68388.0,0.014626]
[1771708769350,0.2055695,68395.0,68388.0,0.014626]
[1771708769657,0.014625,68396.0,68388.0,0.014626]
[1771708769857,0.20381442,68395.0,68388.0,0.014626]
[1771708770058,0.014625,68396.0,68388.0,0.014626]
[1771708770246,0.20381282,68395.0,68388.0,0.014626]
[1771708770451,0.014625,68396.0,68388.0,0.014626]
[1771708770650,0.20381282,68395.0,68388.0,0.014626]
[1771708770853,0.014625,68396.0,68388.0,0.014626]
[1771708771053,0.2038135,68395.0,68388.0,0.014626]
[1771708771255,0.014625,68396.0,68388.0,0.014626]
[1771708771448,0.20381194,68395.0,68388.0,0.014626]
[1771708771650,0.014625,68395.0,68388.0,0.014626]
[1771708771856,0.014625,68394.0,68386.0,0.014627]
[1771708773060,0.014625,68394.0,68388.0,0.00088]
[1771708773259,0.014625,68394.0,68386.0,0.014627]
[1771708776264,0.014625,68394.0,68387.0,0.014627]
[1771708781665,0.014625,68393.0,68385.0,0.014627]
[1771708785559,0.014626,68392.0,68385.0,0.014627]
[1771708787066,0.014625,68393.0,68386.0,0.014627]
[1771708789473,0.014626,68390.0,68382.0,0.014627]
[1771708789671,0.014626,68391.0,68384.0,0.014627]
[1771708790770,0.014625,68396.0,68389.0,0.014626]
[1771708791270,0.014624,68397.0,68389.0,0.014626]
[1771708791461,0.20382482,68396.0,68389.0,0.014626]
[1771708791662,0.014624,68397.0,68389.0,0.014626]
[1771708791859,0.20384702,68396.0,68389.0,0.014626]
[1771708792064,0.014624,68397.0,68389.0,0.014626]
[1771708796775,0.20385797,68396.0,68389.0,0.014626]
[1771708796962,0.014624,68397.0,68389.0,0.014626]
[1771708797167,0.21848297,68396.0,68387.0,0.014626]
[1771708797378,0.014625,68396.0,68387.0,0.014626]
[1771708798377,0.02925,68396.0,68387.0,0.014626]
[1771708798566,0.014624,68398.0,68390.0,0.014626]
[1771708798772,0.21848435,68397.0,68389.0,0.014626]
[1771708798972,0.20385935,68396.0,68389.0,0.014626]
[1771708800280,0.014625,68397.0,68389.0,0.029252]
[1771708800580,0.20391239,68396.0,68390.0,0.014626]
[1771708800771,0.014625,68397.0,68390.0,0.014626]
[1771708800971,0.20391242,68396.0,68390.0,0.014626]
[1771708801171,0.02925,68397.0,68390.0,0.014626]
[1771708801478,0.20391288,68396.0,68390.0,0.014626]
[1771708801680,0.014625,68396.0,68390.0,0.014626]
[1771708802169,0.014625,68397.0,68389.0,0.014626]
[1771708802369,0.20391576,68396.0,68389.0,0.014626]
[1771708802569,0.014625,68397.0,68390.0,0.014626]
[1771708802778,0.20391639,68396.0,68390.0,0.014626]
[1771708803074,0.014623,68403.0,68390.0,0.014626]
[1771708803280,0.014624,68400.0,68391.0,0.014626]
[1771708803473,0.21505544,68399.0,68391.0,0.014626]
[1771708803675,0.21505544,68398.0,68391.0,0.014626]
[1771708803870,0.20043144,68397.0,68391.0,0.014626]
[1771708805882,0.21505544,68397.0,68391.0,0.014626]
[1771708806082,0.014624,68397.0,68390.0,0.014626]
[1771708806384,0.014624,68398.0,68391.0,0.014626]
[1771708806584,0.20042753,68397.0,68391.0,0.014626]
[1771708806775,0.014624,68398.0,68391.0,0.014626]
[1771708806975,0.20042753,68397.0,68391.0,0.014626]
[1771708807177,0.014624,68398.0,68391.0,0.014626]
[1771708807486,0.20042623,68397.0,68390.0,0.014626]
[1771708807686,0.014624,68398.0,68391.0,0.014626]
[1771708807884,0.20042625,68397.0,68391.0,0.014626]
[1771708808185,0.014624,68398.0,68391.0,0.014626]
[1771708808386,0.19882491,68397.0,68391.0,0.014626]
[1771708808585,0.014624,68398.0,68391.0,0.014626]
[1771708808773,0.19882486,68397.0,68390.0,0.014626]
[1771708808978,0.029248,68398.0,68390.0,0.014626]
[1771708809178,0.19882486,68397.0,68390.0,0.014626]
[1771708809378,0.014624,68398.0,68390.0,0.014626]
[1771708809577,0.19882386,68397.0,68390.0,0.014626]
[1771708809780,0.014624,68398.0,68391.0,0.014626]
[1771708809980,0.19882386,68397.0,68391.0,0.014626]
[1771708810181,0.014624,68398.0,68391.0,0.014626]
[1771708810486,0.19882299,68397.0,68391.0,0.014626]
[1771708810687,0.014624,68398.0,68391.0,0.014626]
[1771708810887,0.19882299,68397.0,68391.0,0.014626]
[1771708811085,0.19882299,68396.0,68391.0,0.014626]
[1771708811285,0.029248,68398.0,68391.0,0.014626]
[1771708811486,0.19882225,68397.0,68391.0,0.014626]
[1771708811686,0.19882225,68396.0,68391.0,0.014626]
[1771708811888,0.014624,68398.0,68390.0,0.014626]
[1771708812079,0.19882225,68397.0,68390.0,0.014626]
[1771708812279,0.19882225,68396.0,68390.0,0.014626]
[1771708812483,0.014624,68398.0,68390.0,0.014626]
[1771708812687,0.21344566,68397.0,68390.0,0.014626]
[1771708812887,0.19882166,68396.0,68390.0,0.014626]
[1771708813188,0.029248,68398.0,68390.0,0.014626]
[1771708813483,0.19882128,68397.0,68391.0,0.014626]
[1771708813686,0.014624,68400.0,68391.0,0.014626]
[1771708813888,0.19882364,68399.0,68393.0,0.014625]
[1771708814187,0.19882364,68398.0,68393.0,0.014625]
[1771708814389,0.029248,68400.0,68393.0,0.014625]
[1771708814688,0.19879745,68399.0,68393.0,0.014625]
[1771708814885,0.014624,68400.0,68394.0,0.014625]
[1771708815087,0.19879767,68399.0,68394.0,0.014625]
[1771708815291,0.014624,68400.0,68394.0,0.014625]
[1771708815489,0.19878354,68399.0,68394.0,0.014625]
[1771708815788,0.014624,68402.0,68395.0,0.014625]
[1771708815987,0.19878251,68401.0,68395.0,0.014625]
[1771708816184,0.014624,68402.0,68395.0,0.014625]
[1771708816380,0.19876958,68401.0,68395.0,0.014625]
[1771708816581,0.014624,68402.0,68395.0,0.014625]
[1771708816889,0.19876958,68401.0,68395.0,0.014625]
[1771708817081,0.014624,68402.0,68395.0,0.014625]
[1771708817282,0.19876883,68401.0,68395.0,0.014625]
[1771708817483,0.014624,68402.0,68395.0,0.014625]
[1771708818689,0.014623,68403.0,68395.0,0.014625]
[1771708818890,0.19869254,68402.0,68395.0,0.014625]
[1771708819188,0.014623,68403.0,68395.0,0.014625]
[1771708819389,0.19867542,68402.0,68395.0,0.014625]
[1771708819585,0.014623,68403.0,68395.0,0.014625]
[1771708819896,0.21329842,68402.0,68395.0,0.014625]
[1771708820095,0.014623,68402.0,68395.0,0.014625]
[1771708821093,0.014623,68403.0,68395.0,0.014625]
[1771708821285,0.19865319,68402.0,68395.0,0.014625]
[1771708821484,0.014623,68403.0,68395.0,0.014625]
[1771708821691,0.19865319,68402.0,68395.0,0.014625]
[1771708821892,0.19865319,68402.0,68393.0,0.014625]
[1771708821893,0.014623,68402.0,68394.0,0.014625]
[1771708822995,0.014623,68402.0,68395.0,0.014625]
[1771708823193,0.014623,68403.0,68395.0,0.014625]
[1771708823393,0.19863805,68402.0,68395.0,0.014625]
[1771708823694,0.014623,68403.0,68395.0,0.014625]
[1771708823996,0.21326205,68402.0,68395.0,0.014625]
[1771708824195,0.014624,68402.0,68394.0,0.014625]
[1771708824596,0.014623,68404.0,68395.0,0.014625]
[1771708824790,0.19863244,68403.0,68395.0,0.02925]
[1771708824993,0.014623,68405.0,68397.0,0.014624]
[1771708825290,0.78504173,68411.0,68400.0,0.014624]
[1771708825291,0.014622,68408.0,68400.0,0.014624]
[1771708825482,0.014622,68409.0,68400.0,0.014624]
[1771708825483,0.014622,68410.0,68401.0,0.014624]
[1771708825683,0.014622,68409.0,68401.0,0.014624]
[1771708826596,0.014621,68413.0,68406.0,0.014622]
[1771708826795,0.014621,68413.0,68405.0,0.014623]
[1771708826996,0.014621,68415.0,68406.0,0.014622]
[1771708827193,0.014621,68414.0,68406.0,0.014622]
[1771708827698,0.014621,68413.0,68406.0,0.014622]
[1771708829001,0.014621,68412.0,68405.0,0.014623]
[1771708829202,0.014621,68411.0,68403.0,0.014623]
[1771708829390,0.014621,68411.0,68404.0,0.014623]
[1771708829594,0.014621,68412.0,68405.0,0.014623]
[1771708830196,0.01462,68416.0,68407.0,0.014622]
[1771708830395,0.01462,68418.0,68406.0,0.014622]
[1771708830999,0.19769209,68417.0,68406.0,0.014622]
[1771708831191,0.01462,68418.0,68406.0,0.014622]
[1771708831393,0.014621,68414.0,68406.0,0.014622]
[1771708832104,0.014621,68414.0,68407.0,0.014622]
[1771708833401,0.01462,68418.0,68407.0,0.014622]
[1771708833793,0.014621,68414.0,68407.0,0.014622]
[1771708835297,0.01462,68418.0,68407.0,0.014622]
[1771708835298,0.014621,68416.0,68407.0,0.014622]
[1771708835600,0.014621,68414.0,68407.0,0.029244]
[1771708835798,0.014621,68414.0,68407.0,0.014622]
[1771708836105,0.014622,68408.0,68401.0,0.014623]
[1771708836295,0.014622,68408.0,68392.0,0.014625]
[1771708836598,0.014622,68408.0,68401.0,0.029246]
[1771708837203,0.014622,68410.0,68403.0,0.014623]
[1771708837390,0.014622,68409.0,68403.0,0.014623]
[1771708837596,0.014622,68408.0,68402.0,0.014623]
[1771708838599,0.014622,68408.0,68403.0,0.014623]
[1771708839295,0.014622,68409.0,68403.0,0.014623]
[1771708839697,0.014622,68408.0,68402.0,0.014623]
[1771708839898,0.014624,68399.0,68382.0,1.04442647]
[1771708840103,0.014624,68399.0,68393.0,0.014625]
[1771708841304,0.014624,68398.0,68392.0,0.014625]
[1771708843702,0.014624,68398.0,68393.0,0.014625]
[1771708845207,0.014624,68399.0,68393.0,0.014625]
[1771708846301,0.014624,68399.0,68394.0,0.014625]
[1771708849607,0.014624,68400.0,68394.0,0.014625]
[1771708851013,0.014624,68401.0,68395.0,0.014625]
[1771708852013,0.014624,68401.0,68396.0,0.014625]
[1771708852420,0.014623,68403.0,68397.0,0.014624]
[1771708852819,0.029244,68407.0,68401.0,0.014623]
[1771708853218,0.014622,68407.0,68401.0,0.014623]
[1771708859628,0.014622,68408.0,68401.0,0.029246]
[1771708859832,0.014622,68408.0,68401.0,0.014623]
[1771708860321,0.014623,68406.0,68400.0,0.014624]
[1771708861132,0.014622,68407.0,68400.0,0.014624]
[1771708861332,0.19853108,68406.0,68400.0,0.014624]
[1771708861519,0.014622,68407.0,68400.0,0.014624]
[1771708861725,0.19853633,68406.0,68400.0,0.014624]
[1771708861921,0.014622,68407.0,68400.0,0.014624]
[1771708862129,0.19853623,68406.0,68400.0,0.014624]
[1771708862438,0.014622,68410.0,68403.0,0.014623]
[1771708862629,0.19855816,68409.0,68403.0,0.014623]
[1771708862829,0.19855816,68408.0,68403.0,0.014623]
[1771708863127,0.19855816,68407.0,68403.0,0.029246]
[1771708863328,0.014622,68410.0,68403.0,0.029246]
[1771708863534,0.19857706,68409.0,68403.0,0.014623]
[1771708863829,0.014622,68410.0,68403.0,0.014623]
[1771708863830,0.19857706,68408.0,68403.0,0.014623]
[1771708864022,0.19857706,68407.0,68403.0,0.014623]
[1771708864223,0.014622,68410.0,68403.0,0.014623]
[1771708864431,0.19859984,68409.0,68403.0,0.014623]
[1771708864629,0.19859984,68408.0,68403.0,0.014623]
[1771708864826,0.19859984,68407.0,68403.0,0.014623]
[1771708865027,0.014622,68410.0,68403.0,0.014623]
[1771708865228,0.19859984,68409.0,68403.0,0.014623]
[1771708865432,0.014622,68410.0,68403.0,0.014623]
[1771708865433,0.19859984,68408.0,68403.0,0.014623]
[1771708865631,0.19859984,68408.0,68394.0,0.72952035]
[1771708865632,0.19859984,68407.0,68385.0,0.71119712]
[1771708865830,0.014624,68398.0,68391.0,0.014626]
[1771708866030,0.014624,68398.0,68390.0,0.014626]
[1771708866031,0.014625,68397.0,68392.0,0.00088]
[1771708866231,0.014625,68395.0,68385.0,0.014627]
[1771708866434,0.014625,68395.0,68388.0,0.014626]
[1771708867338,0.014625,68397.0,68389.0,0.014626]
[1771708867538,0.014624,68401.0,68391.0,0.014626]
[1771708867742,0.19780589,68400.0,68394.0,0.014625]
[1771708868039,0.19780589,68399.0,68394.0,0.014625]
[1771708868230,0.71642598,68404.0,68394.0,0.014625]
[1771708868427,0.19781338,68403.0,68394.0,0.014625]
[1771708868738,0.014624,68401.0,68394.0,0.014625]
[1771708869038,0.19781338,68400.0,68394.0,0.014625]
[1771708869239,0.19781338,68399.0,68394.0,0.014625]
[1771708869433,0.014624,68400.0,68393.0,0.014625]
[1771708869628,0.73710219,68396.0,68373.0,0.014629]
[1771708869834,0.014626,68391.0,68384.0,0.014627]
[1771708871334,0.014626,68390.0,68382.0,0.014628]
[1771708871941,0.014626,68389.0,68383.0,0.014627]
[1771708872241,0.014627,68387.0,68379.0,0.014628]
[1771708872636,0.014627,68387.0,68381.0,0.014628]
[1771708873246,0.014626,68388.0,68381.0,0.014628]
[1771708873641,0.014626,68388.0,68382.0,0.014628]
[1771708874044,0.014626,68388.0,68381.0,0.014628]
[1771708874549,0.014627,68387.0,68380.0,0.014628]
[1771708875043,0.014627,68387.0,68381.0,0.0008]
[1771708875245,0.014627,68387.0,68380.0,0.014628]
[1771708875444,0.014627,68387.0,68381.0,0.014628]
[1771708875948,0.014627,68386.0,68381.0,0.014628]
[1771708876450,0.014627,68387.0,68381.0,0.014628]
[1771708877039,0.014626,68388.0,68382.0,0.014628]
[1771708877540,0.014627,68387.0,68382.0,0.014628]
[1771708879949,0.014627,68387.0,68381.0,0.014628]
[1771708880350,0.014627,68387.0,68382.0,0.014628]
[1771708881449,0.014627,68386.0,68381.0,0.014628]
[1771708883644,0.014627,68386.0,68381.0,0.029256]
[1771708884047,0.014627,68386.0,68381.0,0.014628]
[1771708885655,0.014627,68386.0,68381.0,0.029256]
[1771708886247,0.014627,68386.0,68381.0,0.014628]
[1771708886953,0.014627,68386.0,68382.0,0.014628]
[1771708893161,0.014626,68389.0,68384.0,0.014627]
[1771708897854,0.014626,68389.0,68383.0,0.014627]
[1771708899963,0.014625,68393.0,68387.0,0.014626]
[1771708900266,0.014625,68392.0,68387.0,0.014626]
[1771708900757,0.014625,68393.0,68387.0,0.014626]
[1771708901163,0.19942169,68392.0,68387.0,0.014626]
[1771708901362,0.19943325,68391.0,68387.0,0.014626]
[1771708901560,0.014625,68394.0,68388.0,0.014626]
[1771708901864,0.21405864,68393.0,68387.0,0.014626]
[1771708902065,0.19943364,68392.0,68387.0,0.014626]
[1771708902263,0.19944562,68391.0,68387.0,0.014626]
[1771708902565,0.014625,68392.0,68387.0,0.014626]
[1771708902765,0.19944553,68391.0,68387.0,0.014626]
[1771708902965,0.014625,68392.0,68387.0,0.014626]
[1771708903166,0.19944553,68391.0,68387.0,0.014626]
[1771708903465,0.014625,68392.0,68387.0,0.014626]
[1771708903666,0.19944914,68391.0,68386.0,0.014627]
[1771708903866,0.014625,68392.0,68386.0,0.014627]
[1771708904057,0.19944914,68391.0,68386.0,0.014627]
[1771708904367,0.014625,68392.0,68386.0,0.014627]
[1771708904565,0.19944791,68391.0,68386.0,0.014627]
[1771708904765,0.014625,68392.0,68386.0,0.014627]
[1771708905067,0.19944791,68391.0,68386.0,0.014627]
[1771708905359,0.014625,68392.0,68385.0,0.014627]
[1771708905566,0.19944653,68391.0,68387.0,0.014627]
[1771708905866,0.014625,68392.0,68387.0,0.014627]
[1771708906068,0.19944653,68391.0,68387.0,0.014627]
[1771708906263,0.014625,68392.0,68387.0,0.014627]
[1771708906463,0.19944529,68391.0,68386.0,0.014627]
[1771708906664,0.014625,68392.0,68386.0,0.014627]
[1771708907463,0.014625,68392.0,68383.0,0.014627]
[1771708907767,0.014626,68389.0,68381.0,0.014628]
[1771708908155,0.014627,68387.0,68381.0,0.014628]
[1771708912869,0.029254,68387.0,68381.0,0.014628]
[1771708914466,0.014627,68386.0,68381.0,0.014628]
[1771708922377,0.014627,68386.0,68381.0,0.029256]
[1771708924879,0.014627,68386.0,68382.0,0.014628]
[1771708931088,0.029253,68388.0,68383.0,0.014627]
[1771708931385,0.014626,68388.0,68383.0,0.014627]
[1771708932086,0.029253,68388.0,68383.0,0.014627]
[1771708933490,0.014626,68388.0,68383.0,0.014627]
[1771708943909,0.014626,68389.0,68383.0,0.014627]
[1771708952914,0.014626,68389.0,68384.0,0.014627]
[1771708953314,0.014626,68389.0,68382.0,0.014628]
[1771708953315,0.014626,68391.0,68385.0,0.014627]
[1771708953515,0.19936906,68390.0,68385.0,0.014627]
[1771708953710,0.19936906,68389.0,68385.0,0.014627]
[1771708953909,0.014626,68391.0,68385.0,0.014627]
[1771708954112,0.19936915,68390.0,68385.0,0.014627]
[1771708954413,0.19936915,68389.0,68385.0,0.014627]
[1771708954613,0.014626,68391.0,68384.0,0.014627]
[1771708954914,0.19936837,68390.0,68384.0,0.014627]
[1771708955117,0.19936837,68389.0,68384.0,0.014627]
[1771708955315,0.014626,68390.0,68384.0,0.014627]
[1771708955616,0.19936778,68389.0,68384.0,0.014627]
[1771708955817,0.014626,68390.0,68384.0,0.014627]
[1771708956015,0.19936778,68389.0,68384.0,0.014627]
[1771708956317,0.014626,68390.0,68384.0,0.014627]
[1771708956517,0.19936731,68389.0,68384.0,0.014627]
[1771708956717,0.014626,68390.0,68384.0,0.014627]
[1771708956919,0.19936731,68389.0,68384.0,0.014627]
[1771708957117,0.014626,68390.0,68384.0,0.014627]
[1771708957317,0.19936731,68389.0,68384.0,0.014627]
[1771708957518,0.014626,68390.0,68384.0,0.014627]
[1771708957719,0.014626,68391.0,68385.0,0.014627]
[1771708958018,0.19936725,68390.0,68385.0,0.014627]
[1771708958319,0.014626,68391.0,68385.0,0.014627]
[1771708958520,0.19936632,68390.0,68385.0,0.014627]
[1771708958708,0.014626,68391.0,68385.0,0.014627]
[1771708958912,0.19936632,68390.0,68385.0,0.014627]
[1771708959119,0.014626,68391.0,68385.0,0.014627]
[1771708959321,0.19936632,68390.0,68384.0,0.014627]
[1771708959517,0.014626,68391.0,68384.0,0.014627]
[1771708959717,0.1993656,68390.0,68384.0,0.014627]
[1771708959916,0.014626,68391.0,68384.0,0.014627]
[1771708960121,0.1993656,68390.0,68384.0,0.014627]
[1771708960322,0.014626,68391.0,68384.0,0.014627]
[1771708960515,0.19936506,68390.0,68384.0,0.014627]
[1771708960822,0.014626,68391.0,68384.0,0.014627]
[1771708961025,0.19936506,68390.0,68384.0,0.014627]
[1771708961321,0.014626,68391.0,68384.0,0.014627]
[1771708963217,0.029252,68391.0,68384.0,0.014627]
[1771708964023,0.014626,68390.0,68384.0,0.014627]
[1771708971230,0.014626,68390.0,68383.0,0.014627]
[1771708976135,0.014626,68390.0,68384.0,0.014627]
[1771708977931,0.014626,68390.0,68383.0,0.014627]
[1771708980235,0.014624,68398.0,68387.0,0.014626]
[1771708980431,0.014625,68396.0,68389.0,0.014626]
[1771708980627,0.20004383,68395.0,68389.0,0.014626]
[1771708980830,0.20004383,68394.0,68389.0,0.014626]
[1771708981038,0.20004383,68393.0,68389.0,0.014626]
[1771708981237,0.014625,68396.0,68389.0,0.014626]
[1771708981440,0.20003097,68395.0,68389.0,0.014626]
[1771708981641,0.20003097,68394.0,68389.0,0.014626]
[1771708981941,0.014625,68396.0,68389.0,0.014626]
[1771708982143,0.19999146,68395.0,68389.0,0.014626]
[1771708982340,0.19999146,68394.0,68389.0,0.014626]
[1771708982642,0.014625,68396.0,68389.0,0.014626]
[1771708982838,0.19997241,68395.0,68389.0,0.014626]
[1771708983036,0.19997241,68394.0,68389.0,0.015546]
[1771708983237,0.014625,68396.0,68389.0,0.014626]
[1771708983437,0.19995377,68395.0,68389.0,0.014626]
[1771708983637,0.014625,68396.0,68389.0,0.014626]
[1771708983638,0.19995377,68394.0,68389.0,0.014626]
[1771708983834,0.014624,68401.0,68394.0,0.014625]
[1771708984544,0.014624,68401.0,68393.0,0.014625]
[1771708984745,0.014623,68403.0,68396.0,0.014624]
[1771708985041,0.014622,68410.0,68400.0,0.014624]
[1771708985242,0.014623,68406.0,68398.0,0.014624]
[1771708986046,0.014623,68405.0,68398.0,0.014624]
[1771708988847,0.014623,68404.0,68396.0,0.014624]
[1771708990348,0.014623,68405.0,68397.0,0.014624]
[1771708991145,0.029246,68405.0,68397.0,0.014624]
[1771708991339,0.65030595,68420.0,68390.0,0.01945431]
[1771708991544,0.014623,68406.0,68386.0,0.014627]
[1771708991744,0.014623,68403.0,68395.0,0.014625]
[1771708991946,0.014623,68402.0,68394.0,0.014625]
[1771708992256,0.014623,68404.0,68397.0,0.014624]
[1771708994358,0.014623,68404.0,68396.0,0.014625]
[1771708994860,0.014623,68406.0,68397.0,0.014624]
[1771708995159,0.014623,68404.0,68397.0,0.014624]
[1771708995655,0.014623,68404.0,68392.0,0.014625]
[1771708995656,0.014624,68400.0,68392.0,0.014625]
[1771708995857,0.014623,68403.0,68396.0,0.014625]
[1771708996860,0.014623,68402.0,68396.0,0.014625]
[1771708997062,0.014623,68403.0,68396.0,0.014625]
[1771708997364,0.014623,68405.0,68396.0,0.014625]
[1771708998161,0.014623,68404.0,68396.0,0.014625]
[1771709000965,0.014623,68403.0,68396.0,0.014625]
[1771709004169,0.014623,68402.0,68395.0,0.014625]
[1771709004370,0.65030595,68407.0,68387.0,0.26326256]
[1771709004671,0.01945431,68410.0,68388.0,0.014626]
[1771709004672,0.014625,68395.0,68388.0,0.014626]
[1771709008161,0.014625,68397.0,68381.0,0.26326256]
[1771709008162,0.014627,68387.0,68381.0,0.26326256]
[1771709008366,0.014626,68391.0,68382.0,0.014628]
[1771709008768,0.014626,68389.0,68382.0,0.014628]
[1771709012774,0.014626,68389.0,68383.0,0.014627]
[1771709014773,0.014626,68390.0,68383.0,0.014627]
[1771709014976,0.014626,68388.0,68381.0,0.014628]
[1771709015178,0.014626,68388.0,68381.0,0.029256]
[1771709015477,0.014627,68384.0,68377.0,0.014629]
[1771709015677,0.014627,68385.0,68378.0,0.014628]
[1771709016579,0.014627,68384.0,68377.0,0.014629]
[1771709017279,0.014627,68385.0,68378.0,0.014628]
[1771709018977,0.65030595,68392.0,68378.0,0.014628]
[1771709019176,0.014626,68389.0,68382.0,0.014627]
[1771709020379,0.029252,68389.0,68382.0,0.014627]
[1771709021776,0.014626,68389.0,68382.0,0.014627]
[1771709039299,0.014626,68388.0,68381.0,0.014628]
[1771709040199,0.014627,68387.0,68380.0,0.014628]
[1771709040505,0.014627,68386.0,68380.0,0.014628]
[1771709044104,0.06070976,68390.0,68370.0,0.26326256]
[1771709044399,0.014628,68381.0,68374.0,0.014629]
[1771709044901,0.014628,68382.0,68374.0,0.014629]
[1771709045700,0.014627,68383.0,68374.0,0.014629]
[1771709045908,0.014627,68384.0,68375.0,0.014629]
[1771709046697,0.014625,68393.0,68374.0,0.71401045]
[1771709047007,0.014625,68393.0,68384.0,0.014627]
[1771709047302,0.014625,68394.0,68384.0,0.014627]
[1771709048202,0.014625,68393.0,68384.0,0.014627]
[1771709052712,0.014625,68393.0,68383.0,0.014627]
[1771709053710,0.014624,68397.0,68384.0,0.014627]
[1771709053915,0.014624,68399.0,68381.0,0.65860435]
[1771709054208,0.029248,68399.0,68381.0,0.65860435]
[1771709054404,0.014624,68400.0,68389.0,0.014626]
[1771709054707,0.014624,68399.0,68389.0,0.014626]
[1771709055298,0.014624,68400.0,68389.0,0.014626]
[1771709055299,0.014624,68398.0,68389.0,0.014626]
[1771709056610,0.014625,68396.0,68386.0,0.014627]
[1771709056914,0.014625,68396.0,68382.0,0.014628]
[1771709057209,0.014624,68398.0,68387.0,0.014627]
[1771709057210,0.014624,68397.0,68387.0,0.014627]
[1771709058706,0.014624,68398.0,68388.0,0.014626]
[1771709061507,0.029248,68398.0,68388.0,0.014626]
[1771709062009,0.014624,68398.0,68388.0,0.014626]
[1771709063113,0.029248,68398.0,68388.0,0.014626]
[1771709063717,0.014624,68398.0,68388.0,0.014626]
[1771709064417,0.029248,68398.0,68388.0,0.014626]
[1771709064614,0.014624,68398.0,68388.0,0.014626]
[1771709064815,0.029248,68398.0,68388.0,0.014626]
[1771709066011,0.014624,68397.0,68388.0,0.014626]
[1771709069220,0.014624,68397.0,68387.0,0.014627]
[1771709070822,0.013744,68397.0,68387.0,0.014627]
[1771709072325,0.014625,68393.0,68382.0,0.014627]
[1771709072518,0.014625,68394.0,68382.0,0.014627]
[1771709072723,0.014625,68394.0,68384.0,0.014627]
[1771709073315,0.014625,68393.0,68383.0,0.014627]
[1771709073521,0.014625,68394.0,68383.0,0.014627]
[1771709074123,0.014625,68393.0,68383.0,0.014627]
[1771709076125,0.014625,68394.0,68383.0,0.014627]
[1771709079131,0.014625,68393.0,68383.0,0.014627]
[1771709079928,0.014624,68397.0,68387.0,0.014626]
[1771709080130,0.014624,68398.0,68388.0,0.014626]
[1771709080628,0.014624,68397.0,68388.0,0.014626]
[1771709080830,0.014624,68397.0,68387.0,0.014626]
[1771709082027,0.014624,68397.0,68391.0,0.00092]
[1771709082231,0.014624,68397.0,68387.0,0.014626]
[1771709084334,0.014624,68398.0,68387.0,0.014626]
[1771709084530,0.014624,68398.0,68387.0,0.029252]
[1771709085732,0.014624,68398.0,68387.0,0.014626]
[1771709087436,0.014624,68398.0,68387.0,0.029252]
[1771709088938,0.014624,68398.0,68387.0,0.014626]
[1771709089940,0.014624,68398.0,68387.0,0.029252]
[1771709090141,0.014624,68398.0,68387.0,0.014626]
[1771709091042,0.014624,68397.0,68387.0,0.014626]
[1771709091443,0.014624,68397.0,68387.0,0.029252]
[1771709091647,0.014624,68397.0,68387.0,0.014626]
[1771709092241,0.014623,68404.0,68384.0,0.63509373]
[1771709092442,0.014623,68405.0,68394.0,0.014625]
[1771709092941,0.014622,68409.0,68399.0,0.014624]
[1771709093245,0.014621,68414.0,68396.0,0.014624]
[1771709093544,0.74292328,68420.0,68405.0,0.014623]
[1771709093545,0.01462,68416.0,68405.0,0.014623]
[1771709093950,0.01462,68416.0,68398.0,0.014624]
[1771709093951,0.14260835,68428.0,68410.0,0.014622]
[1771709094142,0.14260835,68428.0,68409.0,0.014622]
[1771709094143,0.01462,68420.0,68409.0,0.029244]
[1771709094346,0.01462,68420.0,68409.0,0.014622]
[1771709094651,0.01462,68420.0,68410.0,0.014622]
[1771709099152,0.02924,68420.0,68410.0,0.014622]
[1771709100152,0.02924,68420.0,68400.0,0.01945174]
[1771709100153,0.014621,68412.0,68400.0,0.03407574]
[1771709100344,0.014621,68412.0,68403.0,0.014623]
[1771709100544,0.014621,68411.0,68402.0,0.014623]
[1771709101349,0.014621,68412.0,68402.0,0.014623]
[1771709101657,0.014621,68411.0,68402.0,0.014623]
[1771709102160,0.029243,68411.0,68402.0,0.014623]
[1771709102357,0.014622,68410.0,68402.0,0.014623]
[1771709108962,0.014622,68410.0,68402.0,0.029246]
[1771709109258,0.014621,68411.0,68403.0,0.014623]
[1771709113560,0.014621,68411.0,68404.0,0.014623]
[1771709114662,0.014621,68412.0,68404.0,0.014623]
[1771709117567,0.014621,68412.0,68404.0,0.029246]
[1771709118067,0.014621,68412.0,68406.0,0.00092]
[1771709118268,0.014621,68412.0,68404.0,0.029246]
[1771709118568,0.014621,68412.0,68404.0,0.014623]
[1771709119164,0.014621,68412.0,68405.0,0.014623]
[1771709119864,0.014621,68413.0,68405.0,0.014623]
[1771709120665,0.014621,68413.0,68406.0,0.014622]
[1771709123569,0.014621,68414.0,68406.0,0.014622]
[1771709126771,0.014621,68415.0,68406.0,0.014622]
[1771709129371,0.014621,68415.0,68406.0,0.18937172]
[1771709129771,0.014621,68415.0,68406.0,0.029244]
[1771709130977,0.014621,68415.0,68406.0,0.014622]
[1771709134177,0.014621,68415.0,68406.0,0.029244]
[1771709134376,0.014621,68415.0,68407.0,0.014622]
[1771709135173,0.01462,68417.0,68409.0,0.014622]
[1771709137575,0.01462,68418.0,68409.0,0.014622]
[1771709154509,0.014622,68408.0,68397.0,0.26326256]
[1771709154703,0.014622,68408.0,68400.0,0.014624]
[1771709154899,0.014622,68408.0,68399.0,0.014624]
[1771709159311,0.014622,68409.0,68399.0,0.014624]